Cogmind - Beta 13 @@@ ROGUE MODE // 2024.04.24 @ 19:11:08 Player: AntinDisguise Result: Destroyed by Q1-VU8(R) with Subdweller Laser Performance ------------- Evolutions (0) 0 Regions Visited (2) 400 Robots Destroyed (11) 55 Value Destroyed (380) 380 Prototype IDs (0) 0 Alien Tech Used (0) 0 Bonus (0) 0 TOTAL SCORE: 835 Bonus ------- None Cogmind --------- Core Integrity 0/250 Matter 300/300 Energy 48/100 System Corruption 0% Temperature Cool (12) Movement Treading (160) Location -10/Subcaves Parts ------- > --- POWER (1) -------- (None) > --- PROPULSION (2) --- Light Treads Light Treads > --- UTILITY (2) ------ Small Storage Unit Subdweller Optics > --- WEAPON (2) ------- Medium Laser Subdweller Beam Cannon > --- INVENTORY (8) ---- Subdweller Monowheel Heat Sink Disposable Heat Sink Heavy Assault Rifle Subdweller Shrapnel Launcher Scrap Shield Fragment (47) Peak State ------------ > --- POWER ------------ Ion Engine > --- PROPULSION ------- Wheel Compact Wheel > --- UTILITY ---------- Small Storage Unit Improved Terrain Scanner > --- WEAPON ----------- Medium Laser Particle Gun > --- INVENTORY -------- Light Treads Light Treads [Rating: 10] Favorites ----------- Power Ion Engine Engine Ion Engine Propulsion Light Treads Treads Light Treads Wheel Compact Wheel Utility Small Storage Unit Device Subdweller Optics Storage Small Storage Unit Weapon Medium Laser Energy Gun Medium Laser Energy Cannon Subdweller Beam Cannon Special Weapon Mining Laser Build | -11 -10 -10 ------- Run | Yrd Mat Sub Slots Evolved . | . . . Power . | . . . Propulsion . | . . . Utility . | . . . Weapon . | . . . Parts Attached 16 | 7 1 8 Power 3 | 1 . 2 Engine 3 | 1 . 2 Core . | . . . Reactor . | . . . Propulsion 4 | 2 . 2 Treads 2 | . . 2 Leg . | . . . Wheel 2 | 2 . . Hover . | . . . Flight . | . . . Utility 3 | 2 . 1 Device 2 | 1 . 1 Storage 1 | 1 . . Processor . | . . . Hackware . | . . . Protection . | . . . Artifact . | . . . Weapon 6 | 2 1 3 Energy Gun 4 | 2 . 2 Energy Cannon 1 | . . 1 Ballistic Gun . | . . . Ballistic Cannon . | . . . Launcher . | . . . Special Weapon 1 | . 1 . Impact Weapon . | . . . Slashing Weapon . | . . . Piercing Weapon . | . . . Special Melee Weapon . | . . . Unidentified Prototypes . | . . . Parts Lost 6 | . . 6 Power 1 | . . 1 Propulsion 2 | . . 2 Utility 1 | . . 1 Weapon 2 | . . 2 Highest Loss Streak 2 | . . 2 To Critical Strikes . | . . . Average Slot Usage (%) 89 | . 100 89 Engine 7 | . 14 7 Treads 16 | . . 16 Wheel 8 | . 28 7 Device 14 | . 14 14 Storage 14 | . 14 14 Energy Gun 17 | . 21 16 Energy Cannon 10 | . . 10 Naked Turns . | . . . Heaviest Build 22 | 15 15 22 Greatest Support 40 | 26 26 40 Greatest Overweight (x) 7 | . . 7 Average Overweight (x) . | . . . Largest Inventory Capacity 8 | 8 8 8 Average Capacity 7 | 7 8 8 Most Carried 6 | 4 3 6 Average Carried 4 | 2 3 4 Final Capacity 8 | 8 8 8 Final Carried 6 | 3 3 6 Class Distribution -------------------- 100% | Mutant Dominant Class ---------------- Mutant | -10/Materials Mutant | -10/Subcaves Resources | -11 -10 -10 ----------- Run | Yrd Mat Sub Matter Collected 345 | 260 . 85 Remotely . | . . . Salvage Created 455 | 42 . 413 Parts 29 | 7 . 22 Haulers Intercepted . | . . . Recyclers Shooed . | . . . Parts Field Recycled . | . . . Retrieved Matter . | . . . Parts Self-Destructed 3 | . . 3 Prevented 1 | . . 1 Kills | -11 -10 -10 ------- Run | Yrd Mat Sub Combat Hostiles Destroyed 9 | . . 9 Guns 4 | . . 4 Cannons 5 | . . 5 Classes Destroyed 4 | 1 . 3 Tunneler 2 | 2 . . Grunt 2 | . . 2 Sentry 1 | . . 1 Subdweller 6 | . . 6 Best Kill Streak 2 | 2 . 2 Combat Bots Only 2 | . . 2 Max Kills in Single Turn 1 | 1 . 1 Gunslinging . | . . . Exploded . | . . . Melee . | . . . Uniques/NPCs Destroyed . | . . . Combat | -11 -10 -10 -------- Run | Yrd Mat Sub Hostile Shots Fired 61 | . . 61 Missed 22 | . . 22 Damage Taken 933 | . . 933 Core 251 | . . 251 Absorbed by Shields . | . . . Core Remaining (%) 100 | 100 . . Volleys Fired 52 | 2 9 41 Largest 2 | 2 1 2 Hottest 130 | 90 100 130 Shots Fired 90 | 4 9 77 Gun 59 | 4 . 55 Cannon 22 | . . 22 Launcher . | . . . Special 9 | . 9 . Kinetic . | . . . Thermal 86 | 2 9 75 Explosive . | . . . Electromagnetic 4 | 2 . 2 Robot Hit Streak 17 | 3 . 17 Robot Miss Streak 1 | . . 1 Penetration Max . | . . . Secondary Targets 1 | . . 1 Max Gunslinging Chain 1 | . . 1 Shots Hit Robots 58 | 3 . 55 Core Hits 18 | 2 . 16 Critical Kills . | . . . Critical Parts Destroyed . | . . . Critical Strikes 4 | . . 4 Burn 4 | . . 4 Melee Attacks . | . . . Impact . | . . . Slashing . | . . . Piercing . | . . . Sneak Attacks . | . . . Combat Hostiles . | . . . Follow-up Attacks . | . . . Damage Inflicted 957 | 38 . 919 Guns 603 | 38 . 565 Cannons 354 | . . 354 Explosions . | . . . Melee . | . . . Ramming . | . . . Kinetic . | . . . Thermal 908 | 13 . 895 Explosive . | . . . Electromagnetic 49 | 25 . 24 Impact . | . . . Slashing . | . . . Piercing . | . . . Highest Corruption . | . . . Average Corruption . | . . . Corruption Purged . | . . . Corruption Blocked . | . . . Overload Shots . | . . . Overflow Damage . | . . . Projectiles . | . . . Explosions . | . . . Melee . | . . . Knockbacks . | . . . Impact . | . . . Kinetic . | . . . Secondary . | . . . Self-Inflicted Damage . | . . . Shots . | . . . Rammed . | . . . Targets Rammed . | . . . Kicked . | . . . Crushed . | . . . Highest Temperature 140 | 30 140 57 Average Temperature 32 | 17 67 19 Received Heat Transfer 255 | . . 255 Siege Activations . | . . . Robots Corrupted . | . . . Combat Hostiles . | . . . Parts Fried . | . . . Impact Corruptions . | . . . Robots Melted . | . . . Combat Hostiles . | . . . Parts Melted 6 | . . 6 Heat Transferred 2294 | 37 . 2257 Parts Sabotaged . | . . . Parts Stolen . | . . . Parts Stripped . | . . . Power Chain Reactions . | . . . Alert | -11 -10 -10 ------- Run | Yrd Mat Sub Peak Influence 24 | 10 24 . Initial 6 | . 6 . Average 4 | 2 6 . Maximum Alert Level . | . . . Low Security (%) 100 | 100 100 . Level 1 . | . . . Level 2 . | . . . Level 3 . | . . . Level 4 . | . . . Level 5 . | . . . High Security . | . . . Max Security . | . . . Squads Dispatched . | . . . Investigation . | . . . Extermination . | . . . Reinforcement . | . . . Assault . | . . . Garrison . | . . . Intercept . | . . . Searches Triggered . | . . . Construction Impeded . | . . . Haulers Reinforced . | . . . Active Scanning Responses . | . . . Cargo Convoy Interrupts . | . . . Stealth | -11 -10 -10 --------- Run | Yrd Mat Sub Distress Signals . | . . . Communications Jammed . | . . . Distress Signals . | . . . Times Spotted 11 | . . 11 Peak Tracking Total 3 | . . 3 Tactical Retreats . | . . . Traps | -11 -10 -10 ------- Run | Yrd Mat Sub Traps Triggered 2 | . . 2 Indirectly . | . . . Trap Hack Attempts . | . . . Triggered . | . . . Disarmed . | . . . Reprogrammed . | . . . Reused . | . . . Traps Extracted . | . . . Installed . | . . . Triggered . | . . . Machines | -11 -10 -10 ---------- Run | Yrd Mat Sub Machines Disabled . | . . . Max in Single Turn . | . . . Machines Repaired . | . . . Machines Dismantled . | . . . Machines Sabotaged . | . . . Overloaded Fab Kills . | . . . Hacking | -11 -10 -10 --------- Run | Yrd Mat Sub Machines Accessed 1 | . . 1 Terminals . | . . . Fabricators . | . . . Repair Stations . | . . . Recycling Units . | . . . Scanalyzers . | . . . Garrison Access . | . . . Total Hacks 1 | . . 1 Successful 1 | . . 1 Failed . | . . . Catastrophic . | . . . Database Lockouts . | . . . Manual . | . . . Terminals . | . . . Fabricators . | . . . Repair Stations . | . . . Recycling Units . | . . . Scanalyzers . | . . . Garrison Access . | . . . Terminal Hacks 1 | . . 1 Record 1 | . . 1 Fabricator Hacks . | . . . Repair Station Hacks . | . . . Recycling Unit Hacks . | . . . Scanalyzer . | . . . Garrison Access Hacks . | . . . Unauthorized Hacks . | . . . Terminals . | . . . Fabricators . | . . . Repair Stations . | . . . Recycling Units . | . . . Scanalyzers . | . . . Garrison Access . | . . . Data Cores Recovered . | . . . Used . | . . . Hacking Detections . | . . . Full Trace Events . | . . . Feedback Events . | . . . Feedback Blocked . | . . . Robot Schematics Acquired . | . . . Robots Built . | . . . Authchips . | . . . Time . | . . . Total Robot Build Rating . | . . . Part Schematics Acquired . | . . . Parts Built . | . . . Authchips . | . . . Time . | . . . Total Part Build Rating . | . . . Parts Repaired . | . . . Time . | . . . Parts Recycled . | . . . Recycled Matter . | . . . Retrieved Matter . | . . . Retrieved Components . | . . . Parts Scanalyzed . | . . . Part Schematics Acquired . | . . . Parts Damaged . | . . . Bothacking | -11 -10 -10 ------------ Run | Yrd Mat Sub Used RIF Installer . | . . . Robots Hacked . | . . . Non-combat . | . . . Combat . | . . . Robot Hacks Applied . | . . . Relay Couplers Released . | . . . Fabnet Peak Effective % . | . . . Robots Rewired . | . . . Allies Hacked . | . . . Hacks Repelled . | . . . Allies | -11 -10 -10 -------- Run | Yrd Mat Sub Total Allies . | . . . Largest Group . | . . . Highest-Rated Group . | . . . Highest-Rated Ally . | . . . Total Orders . | . . . Ally Attacks . | . . . Total Damage . | . . . Kills . | . . . Allies Corrupted . | . . . Allies Melted . | . . . Intel | -11 -10 -10 ------- Run | Yrd Mat Sub Robot Analysis Total . | . . . Derelict Logs Recovered 2 | . . 2 Drone Launches . | . . . Drone Recoveries . | . . . Exploration | -11 -10 -10 ------------- Run | Yrd Mat Sub Turns Passed 1827 | 61 90 1676 Spaces Moved 1204 | 44 24 1136 Core 14 | 6 . 8 Treads 615 | . . 615 Legs . | . . . Wheels 575 | 38 24 513 Hover . | . . . Flight . | . . . Fastest Speed 50 | 50 90 90 Average Speed 131 | 84 90 133 Slowest Speed 400 | 90 90 400 Overloaded Moves . | . . . Propulsion Burnouts . | . . . Robots Hopped . | . . . Cave-ins Triggered . | . . . Exploration Rate (%) 21 | 3 9 53 Regions Visited 2 Branch Regions 1 Pre-discovered Areas 1 | . . 1 Known Exits Taken . | . . . Unknown Exits Taken 2 | 1 1 . Scrap Searched . | . . . Spaces Dug . | . . . Terrain Destroyed 3 | . 3 . Melee . | . . . Projectile 3 | . 3 . AOE . | . . . Terrain Rammed . | . . . Walls Destroyed . | . . . Machines Disabled . | . . . Actions | -11 -10 -10 --------- Run | Yrd Mat Sub Total 1347 | 64 64 1219 Wait 49 | . 31 18 Move 1202 | 43 23 1136 Hop . | . . . Pick Up 23 | 11 . 12 Fast Attach . | . . . Attach 15 | 7 . 8 Detach . | . . . Swap 1 | . 1 . Drop 5 | 1 . 4 Fire 52 | 2 9 41 Melee . | . . . Ram . | . . . Kick . | . . . Crush . | . . . Escape Stasis . | . . . Rewire . | . . . Trap . | . . . Miscellaneous . | . . . Route ------- -11/Scrapyard -10/Materials -10/Subcaves History --------- Turn | Location | Event 6 | -11/Scrapyard | Discovered new exit (range 15) 62 | -11/Scrapyard | Entered Materials 147 | -10/Materials | Discovered new exit (range 3) 152 | -10/Materials | Entered Subcaves 317 | -10/Subcaves | Build established: Mutant 378 | -10/Subcaves | Visited Clippyterm 500 | -10/Subcaves | Core integrity fell below 50% 572 | -10/Subcaves | Shifting Twisted Machinery released Sub. Power Source 1657 | -10/Subcaves | Core integrity fell below 20% 1790 | -10/Subcaves | Learned location of Mines (-8) 1828 | -10/Subcaves | Destroyed by Q1-VU8(R) with Subdweller Laser Last Messages --------------- Subatomizers dissect the Sub. Optics, destroying it. Acquired 18 matter. Acquired 2 matter. Subatomizers dissect the Disposable Heat Sink. Acquired Sub. Monowheel. Subatomizers dissect the Broken Sub. Power Source. Sub. Power Source shoots sparks and powers down. Dropped Broken Sub. Power Source. Y-45 Defender suffers critical hit (Burn). Beam Rifle melted. Imp. Ion Engine melted. Y-45 Defender destroyed. Acquired Hvy. Assault Rifle. Triggered Piercing Trap. Spikes shoot up from the floor. Triggered Shrapnel Trap. An expanding cloud of shrapnel blasts out in all directions. Acquired derelict log, extracted data. World map updated: -8/Mines. Map ----- +----------------------------------------------------+ | ???????????????#????????????? ? ??????? ???? | | ??????????????## ???????????? ? ??????? #???? | | ??????????????# ???????????? # ??????? #????? | | ??????????????# ???????????## #?????? #????? | | ?????????????## ??????????## #????? #????? | | ?????????????# ?????????# #????? #????? | | ?????????????# ????????## #???? ##???? | | ?????????????? ???????## #??? ##??? | | ??????????????? ??????## ### ^ #??? | | ??????????????## ?????# #???? | | ??????????????# ????## #???? | | ??????????????# ????# #????? | | ??????????????# ##### #?????? | | ???????????????# ##### #??????? | | ???????????????# #?????????????????? | | ???????????????# ### ##????????????????? | | ???????????????????# ## #????????????????? | | ??????????????????# ## #????????????????? | | ??????????????????# ### ###????????????????? | | ??????????????????# ## ##?# #??????????????????? | | ??????????????????##?###??# ##?????????????????? | | ??????????????????????????# #?????????????????? | | ???????????????????????# ##??????###???????? | | ??????????????????????##RR ##????# ###?????? | | #????????????????????## #???# #?????? | | ###?????????????????##@ #### #?????? | | #?????????????????# ### #??????? | | ??????????????####### ### #??????? | | ?????????????## #?## ### ##?????? | | ?????????????## ### ## ^ #?????# | | ????????????## ## ##?????? | | #?????????#### ######??????? | | #####????## ## #??###??????? | | ###### ### ## #?## #??????? | | ### ## ### ### #??????? | | # ##?# ## ##?# ## #??????? | | # ####??## #### ##??## #??????? | | ### ## ###????####??###???## #??????? | | ####### ##??????????????##" #??????? | | ## # ## #??????????????# #??????? | | #??????????????###" "## #??????# | | #####????????????????#" " # ##?????#? | | ## # #????????????????????#""""#####????#??? | | ########????????????????????######???????????? | | #????????????????????????????????????????????? | | #???????????????????????????????????????????? | | ## ###???????????????????????????????????????????? | | ?###?????????????????????????????????????????????? | | ?????????????????????????????????????????????????? | | ??????????????????????????????????????????????#### | +----------------------------------------------------+ Best States ------------- Heat Dissipation 25 Energy Generation 15 Energy Capacity 250 Matter Stores 300 Matter Capacity 300 Sight Range 21 Terrain Scan Range 16 Terrain Scan Density 10 Evasion (%) 42 Recoil Reduction 2 Item Schematics ----------------- None Robot Schematics ------------------ None Fabricated ------------ Nothing Alien Tech Used ----------------- None Achievements -------------- None Challenges ------------ None Game ------ Seed CompactMeleeSheargun Manual? 0 Play Time 00:09:22 Cumulative 25.2 hours Start 2024.04.24 @ 18:55:17 End 2024.04.24 @ 19:11:08 Sessions 1 Manual Loads 0 Difficulty Rogue Special Mode None Game No. 67 Rogue 65 Adventurer 2 Explorer 0 Win Type - Total 0 Types 0/0/0/0/0/0/0/0/0 Lore% 22 Gallery% 30 Achievement% 23 Wizard Run 0 Options --------- Layout 1 ASCII 0 Keyboard 0 Movement Mouse Keybinds 0 Fullscreen 1 Font 16/SmallcapsGlow Map View 27x19 Zoom Use 92% Tactical HUD 0 Map Filters NONE Filters NONE Steam 1 RUN: 1e7a4523-d16b-4359-a241-2dfd34eddb51